[Event "-chT Youth Countries 2019"]
[Site "Wuerzburg"]
[Date "2019.10.06"]
[Round "7.2"]
[White "Arndt, Magnus"]
[Black "Knuedel, Torben"]
[Result "1/2-1/2"]
[ECO "C88"]
[WhiteElo "2312"]
[BlackElo "2193"]
[Annotator "ChessBase"]
[PlyCount "155"]
[EventDate "2019.10.02"]
[EventType "team-tourn"]
[EventRounds "7"]
[EventCountry "GER"]
[SourceTitle "playchess.com"]
[Source "ChessBase"]
[SourceQuality "1"]
[WhiteTeam "Schleswig-Holstein"]
[BlackTeam "Niedersachsen"]
[TimeControl "40/5400+30:1800+30"]

1. e4 {[%emt 0:00:00]} e5 {[%emt 0:00:04]} 2. Nf3 {[%emt 0:00:00]} Nc6 {[%emt 0:00:04]} 3. Bb5 {[%emt 0:00:00]} a6 {[%emt 0:00:02]} 4. Ba4 {[%emt 0:00:00]} Nf6 {[%emt 0:00:04]} 5. O-O {[%emt 0:00:00]} Be7 {[%emt 0:00:02]} 6. Re1 {[%emt 0:00:04]} b5 {[%emt 0:00:07]} 7. Bb3 {[%emt 0:00:04]} O-O {[%emt 0:00:04]} 8. a4 {[%emt 0:00:03]} Bb7 {[%emt 0:00:08]} 9. d3 {[%emt 0:01:00]} d6 {[%emt 0:01:30]} 10. h3 {[%emt 0:19:17]} Na5 {[%emt 0:00:08]} 11. Ba2 {[%emt 0:00:42]} c5 {[%emt 0:00:06]} 12. Nbd2 {[%emt 0:21:17]} h6 {[%emt 0:05:56]} 13. Nf1 {[%emt 0:02:57]} Re8 {[%emt 0:00:25]} 14. Ng3 {[%emt 0:01:48]} Bf8 {[%emt 0:00:21]} 15. Nh2 {[%emt 0:08:17]} d5 {[%emt 0:11:37]} 16. Ng4 {[%emt 0:05:03]} dxe4 {[%emt 0:14:34]} 17. Nxf6+ {[%emt 0:08:33]} Qxf6 {[%emt 0:00:10]} 18. Nxe4 {[%emt 0:00:06]} Qg6 {[%emt 0:01:50]} 19. Qg4 {[%emt 0:06:32]} Qxg4 {[%emt 0:03:12]} 20. hxg4 {[%emt 0:00:01]} c4 {[%emt 0:03:51]} 21. dxc4 {[%emt 0:11:03]} Nxc4 {[%emt 0:01:27]} 22. c3 {[%emt 0:00:24]} Rad8 {[%emt 0:03:34]} 23. Bb1 {[%emt 0:01:45]} b4 {[%emt 0:06:59]} 24. Bc2 {[%emt 0:03:59]} a5 {[%emt 0:03:26]} 25. Ng3 {[%emt 0:02:50]} Nd2 {[%emt 0:05:25]} 26. Nf1 {[%emt 0:02:40]} Nxf1 {[%emt 0:01:22]} 27. Kxf1 {[%emt 0:00:09]} Bc5 {[%emt 0:02:43]} 28. Kg1 {[%emt 0:02:28]} Rd6 {[%emt 0:03:23]} 29. Be3 {[%emt 0:01:20]} Bxe3 {[%emt 0:00:58]} 30. Rxe3 {[%emt 0:00:01]} Rd2 {[%emt 0:00:14]} 31. Be4 {[%emt 0:00:12]} Bxe4 {[%emt 0:01:00]} 32. Rxe4 {[%emt 0:00:01]} Rxb2 {[%emt 0:00:12]} 33. cxb4 {[%emt 0:00:10]} Rxb4 {[%emt 0:07:47]} 34. Rxb4 {[%emt 0:00:08]} axb4 {[%emt 0:00:01]} 35. Rb1 {[%emt 0:00:07]} Rb8 {[%emt 0:00:06]} 36. a5 {[%emt 0:00:07]} Ra8 {[%emt 0:00:17]} 37. Rxb4 {[%emt 0:00:05]} Rxa5 {[%emt 0:00:07]} 38. Rb7 {[%emt 0:01:06]} f6 {[%emt 0:02:39]} 39. Kh2 {[%emt 0:01:25]} Kh7 {[%emt 0:00:19]} 40. Kg3 {[%emt 0:00:17]} Kg6 {[%emt 0:00:07]} 41. Rc7 {[%emt 0:31:17]} Ra8 {[%emt 0:31:34]} 42. Re7 {[%emt 0:00:00]} Rb8 {[%emt 0:00:00]} 43. f3 {[%emt 0:00:00]} Ra8 {[%emt 0:00:00]} 44. Rb7 {[%emt 0:00:00]} Rf8 {[%emt 0:00:00]} 45. Ra7 {[%emt 0:00:00]} Rf7 {[%emt 0:00:00]} 46. Ra5 {[%emt 0:00:00]} Rb7 {[%emt 0:00:00]} 47. Ra8 {[%emt 0:00:00]} Kg5 {[%emt 0:00:00]} 48. Ra5 {[%emt 0:00:00]} Rb3 {[%emt 0:00:00]} 49. Ra7 {[%emt 0:00:00]} g6 {[%emt 0:00:00]} 50. Re7 {[%emt 0:00:00]} Rb2 {[%emt 0:00:00]} 51. Re6 {[%emt 0:00:00]} Ra2 {[%emt 0:00:00]} 52. Kh3 {[%emt 0:00:00]} Ra1 {[%emt 0:00:00]} 53. Kg3 {[%emt 0:00:00]} h5 {[%emt 0:00:00]} 54. gxh5 {[%emt 0:00:00]} gxh5 {[%emt 0:00:00]} 55. Re8 {[%emt 0:00:00]} h4+ {[%emt 0:00:18]} 56. Kh2 {[%emt 0:00:01]} Ra6 {[%emt 0:05:29]} 57. Rg8+ {[%emt 0:02:31]} Kf4 {[%emt 0:00:55]} 58. Rg4+ {[%emt 0:03:56]} Ke3 {[%emt 0:00:18]} 59. Rxh4 {[%emt 0:00:23]} f5 {[%emt 0:00:23]} 60. Rb4 {[%emt 0:01:01]} e4 {[%emt 0:01:14]} 61. fxe4 {[%emt 0:01:42]} fxe4 {[%emt 0:01:00]} 62. Rb8 {[%emt 0:00:19]} Kd2 {[%emt 0:03:01]} 63. g4 {[%emt 0:02:30]} e3 {[%emt 0:02:49]} 64. Rd8+ {[%emt 0:00:56]} Ke1 {[%emt 0:02:18]} 65. Re8 {[%emt 0:00:46]} e2 {[%emt 0:00:35]} 66. Kg3 {[%emt 0:00:05]} Kf1 {[%emt 0:09:04]} 67. Rf8+ {[%emt 0:00:36]} Kg1 {[%emt 0:00:11]} 68. Re8 {[%emt 0:00:06]} Ra3+ {[%emt 0:00:10]} 69. Kf4 {[%emt 0:00:10]} Kf2 {[%emt 0:00:07]} 70. Rxe2+ {[%emt 0:00:11]} Kxe2 {[%emt 0:00:08]} 71. g5 {[%emt 0:00:10]} Ra6 {[%emt 0:07:41]} 72. Kf5 {[%emt 0:00:23]} Kf3 {[%emt 0:00:30]} 73. g6 {[%emt 0:00:05]} Ra8 {[%emt 0:01:15]} 74. g7 {[%emt 0:00:13]} Kg3 {[%emt 0:00:37]} 75. Kg6 {[%emt 0:00:08]} Kg4 {[%emt 0:00:35]} 76. Kh7 {[%emt 0:00:14]} Kg5 {[%emt 0:00:29]} 77. g8=Q+ {[%emt 0:00:08]} Rxg8 {[%emt 0:00:06]} 78. Kxg8 {normal} 1/2-1/2

[Event "-chT Youth Countries 2019"]
[Site "Wuerzburg"]
[Date "2019.10.06"]
[Round "7.2"]
[White "Maetzkow, Maximilian Paul"]
[Black "Ratay, Meike"]
[Result "1-0"]
[ECO "B51"]
[WhiteElo "2287"]
[BlackElo "2032"]
[Annotator "ChessBase"]
[PlyCount "73"]
[EventDate "2019.10.02"]
[EventType "team-tourn"]
[EventRounds "7"]
[EventCountry "GER"]
[SourceTitle "playchess.com"]
[Source "ChessBase"]
[SourceQuality "1"]
[WhiteTeam "Brandenburg/Berlin"]
[BlackTeam "Thüringen"]
[TimeControl "40/5400+30:1800+30"]

1. e4 {[%emt 0:00:00]} c5 {[%emt 0:00:00]} 2. Nf3 {[%emt 0:00:00]} d6 {[%emt 0:00:00]} 3. Bb5+ {[%emt 0:00:00]} Nd7 {[%emt 0:00:00]} 4. Ba4 {[%emt 0:00:00]} Ngf6 {[%emt 0:01:21]} 5. O-O {[%emt 0:00:00]} e6 {[%emt 0:06:47]} 6. d4 {[%emt 0:03:32]} cxd4 {[%emt 0:01:32]} 7. Qxd4 {[%emt 0:01:11]} Be7 {[%emt 0:01:45]} 8. c4 {[%emt 0:00:40]} O-O {[%emt 0:01:13]} 9. Nc3 {[%emt 0:00:09]} Nc5 {[%emt 0:11:14]} 10. Bc2 {[%emt 0:00:53]} Qb6 {[%emt 0:09:38]} 11. Rd1 {[%emt 0:03:41]} Rd8 {[%emt 0:06:40]} 12. Rb1 {[%emt 0:00:32]} a5 {[%emt 0:07:39]} 13. Be3 {[%emt 0:04:47]} Ng4 {[%emt 0:08:57]} 14. Bg5 {[%emt 0:01:59]} Bxg5 {[%emt 0:02:08]} 15. Nxg5 {[%emt 0:00:06]} Ne5 {[%emt 0:01:57]} 16. f4 {[%emt 0:04:40]} Nc6 {[%emt 0:00:31]} 17. Qf2 {[%emt 0:00:05]} Nb4 {[%emt 0:02:00]} 18. Kh1 {[%emt 0:00:37]} Nxc2 {[%emt 0:03:16]} 19. Qxc2 {[%emt 0:00:11]} h6 {[%emt 0:00:46]} 20. Nf3 {[%emt 0:01:18]} Bd7 {[%emt 0:01:18]} 21. Rd2 {[%emt 0:02:37]} Be8 {[%emt 0:06:43]} 22. Rbd1 {[%emt 0:00:52]} Rac8 {[%emt 0:01:22]} 23. f5 {[%emt 0:03:28]} Qb4 {[%emt 0:04:35]} 24. Rd4 {[%emt 0:03:25]} Na4 {[%emt 0:02:13]} 25. Nxa4 {[%emt 0:02:52]} Bxa4 {[%emt 0:00:21]} 26. b3 {[%emt 0:00:11]} Bc6 {[%emt 0:05:09]} 27. c5 {[%emt 0:01:44]} Qb5 {[%emt 0:01:51]} 28. fxe6 {[%emt 0:06:20]} Be8 {[%emt 0:03:42]} 29. Qd2 {[%emt 0:17:31]} Rxc5 {[%emt 0:02:56]} 30. exf7+ {[%emt 0:01:20]} Bxf7 {[%emt 0:00:08]} 31. Rxd6 {[%emt 0:00:12]} Rxd6 {[%emt 0:00:32]} 32. Qxd6 {[%emt 0:00:06]} Bh5 {[%emt 0:04:12]} 33. Nd4 {[%emt 0:01:53]} Qb4 {[%emt 0:01:05]} 34. Rf1 {[%emt 0:01:01]} Rc3 {[%emt 0:01:54]} 35. Qd5+ {[%emt 0:00:51]} Kh7 {[%emt 0:00:50]} 36. Ne6 {[%emt 0:01:46]} Bg6 {[%emt 0:00:43]} 37. Qd7 {[%emt 0:00:47] normal} 1-0

[Event "-chT Youth Countries 2019"]
[Site "Wuerzburg"]
[Date "2019.10.06"]
[Round "7.2"]
[White "Koelle, Tobias"]
[Black "Zha, Kevin"]
[Result "1-0"]
[ECO "A58"]
[WhiteElo "2281"]
[BlackElo "1923"]
[Annotator "ChessBase"]
[PlyCount "139"]
[EventDate "2019.10.02"]
[EventType "team-tourn"]
[EventRounds "7"]
[EventCountry "GER"]
[SourceTitle "playchess.com"]
[Source "ChessBase"]
[SourceQuality "1"]
[WhiteTeam "Württemberg"]
[BlackTeam "Saarland"]
[TimeControl "40/5400+30:1800+30"]

1. d4 {[%emt 0:00:00]} Nf6 {[%emt 0:00:00]} 2. c4 {[%emt 0:00:00]} c5 {[%emt 0:00:00]} 3. d5 {[%emt 0:00:00]} b5 {[%emt 0:00:00]} 4. cxb5 {[%emt 0:00:00]} a6 {[%emt 0:00:00]} 5. bxa6 {[%emt 0:00:00]} g6 {[%emt 0:00:00]} 6. Nf3 {[%emt 0:00:00]} Bg7 {[%emt 0:00:00]} 7. Nc3 {[%emt 0:00:05]} O-O {[%emt 0:00:00]} 8. g3 {[%emt 0:00:03]} d6 {[%emt 0:01:16]} 9. Bg2 {[%emt 0:00:05]} Nbd7 {[%emt 0:01:25]} 10. O-O {[%emt 0:05:59]} Bxa6 {[%emt 0:00:27]} 11. Rb1 {[%emt 0:01:17]} Qc7 {[%emt 0:41:26]} 12. b3 {[%emt 0:00:46]} Rfb8 {[%emt 0:00:55]} 13. Bb2 {[%emt 0:00:11]} Rb7 {[%emt 0:03:45]} 14. Qc2 {[%emt 0:03:15]} Rab8 {[%emt 0:03:09]} 15. Nd2 {[%emt 0:01:46]} Ne5 {[%emt 0:06:40]} 16. h3 {[%emt 0:01:25]} c4 {[%emt 0:06:38]} 17. Rfc1 {[%emt 0:03:26]} cxb3 {[%emt 0:04:31]} 18. axb3 {[%emt 0:00:14]} Qd8 {[%emt 0:15:33]} 19. Ra1 {[%emt 0:02:18]} Rb6 {[%emt 0:04:41]} 20. Na4 {[%emt 0:02:21]} Rb5 {[%emt 0:00:46]} 21. Nc3 {[%emt 0:04:16]} R5b6 {[%emt 0:00:06]} 22. Ra2 {[%emt 0:00:51]} Bc8 {[%emt 0:00:51]} 23. Rca1 {[%emt 0:01:04]} e6 {[%emt 0:03:59]} 24. Kh2 {[%emt 0:03:55]} Rb4 {[%emt 0:02:01]} 25. Ba3 {[%emt 0:01:15]} R4b7 {[%emt 0:00:25]} 26. f4 {[%emt 0:00:39]} Neg4+ {[%emt 0:02:03]} 27. hxg4 Nxg4+ {[%emt 0:00:05]} 28. Kh1 {[%emt 0:09:38]} Qb6 {[%emt 0:01:52]} 29. Nd1 {[%emt 0:07:10]} Bxa1 {[%emt 0:00:39]} 30. Rxa1 {[%emt 0:00:01]} e5 {[%emt 0:01:01]} 31. Qd3 {[%emt 0:01:43]} exf4 {[%emt 0:00:21]} 32. gxf4 {[%emt 0:00:48]} Re7 {[%emt 0:00:09]} 33. e4 {[%emt 0:02:17]} Ba6 {[%emt 0:00:46]} 34. Qf3 {[%emt 0:01:38]} h5 {[%emt 0:00:11]} 35. Bb2 {[%emt 0:00:49]} Rbe8 {[%emt 0:01:06]} 36. Rc1 {[%emt 0:01:41]} Qa5 {[%emt 0:00:37]} 37. Qc3 {[%emt 0:02:08]} Qxc3 {[%emt 0:00:11]} 38. Bxc3 {[%emt 0:00:21]} f5 {[%emt 0:00:35]} 39. e5 {[%emt 0:05:10]} dxe5 {[%emt 0:00:26]} 40. d6 {[%emt 0:00:01]} Rd7 {[%emt 0:00:49]} 41. Ra1 {[%emt 0:48:28]} Bb7 {[%emt 0:09:48]} 42. Bxb7 {[%emt 0:00:00]} Rxb7 {[%emt 0:00:49]} 43. fxe5 {[%emt 0:00:00]} Nxe5 {[%emt 0:03:49]} 44. Ne3 {[%emt 0:00:00]} Rd7 {[%emt 0:03:05]} 45. Ndc4 {[%emt 0:00:00]} Nxc4 {[%emt 0:01:57]} 46. Nxc4 {[%emt 0:00:00]} Rb8 {[%emt 0:05:33]} 47. Bf6 {[%emt 0:00:00]} Rdb7 {[%emt 0:03:14]} 48. Ne5 {[%emt 0:00:00]} Rxb3 {[%emt 0:00:43]} 49. d7 {[%emt 0:00:00]} Rb1+ {[%emt 0:00:17]} 50. Rxb1 {[%emt 0:00:00]} Rxb1+ {[%emt 0:00:04]} 51. Kg2 {[%emt 0:00:00]} Rd1 {[%emt 0:01:10]} 52. d8=Q+ {[%emt 0:00:00]} Rxd8 {[%emt 0:00:05]} 53. Bxd8 {[%emt 0:00:00]} Kg7 {[%emt 0:01:11]} 54. Bg5 {[%emt 0:00:00]} Kh7 {[%emt 0:00:26]} 55. Kg3 {[%emt 0:00:00]} Kg7 {[%emt 0:00:26]} 56. Kf4 {[%emt 0:00:00]} Kf8 {[%emt 0:01:40]} 57. Nxg6+ {[%emt 0:00:00]} Kf7 {[%emt 0:00:13]} 58. Kxf5 {[%emt 0:00:00]} Kg7 {[%emt 0:00:26]} 59. Nf4 {[%emt 0:00:00]} Kf7 {[%emt 0:01:27]} 60. Nxh5 {[%emt 0:00:00]} Ke8 {[%emt 0:00:11]} 61. Ke6 {[%emt 0:00:00]} Kf8 {[%emt 0:00:02]} 62. Be7+ {[%emt 0:00:00]} Kg8 {[%emt 0:00:05]} 63. Ba3 {[%emt 0:00:00]} Kh7 {[%emt 0:00:11]} 64. Kf6 {[%emt 0:00:00]} Kh6 {[%emt 0:00:20]} 65. Ng7 {[%emt 0:00:00]} Kh7 {[%emt 0:00:04]} 66. Nf5 {[%emt 0:00:00]} Kg8 {[%emt 0:00:06]} 67. Kg6 {[%emt 0:00:00]} Kh8 {[%emt 0:00:10]} 68. Bb4 {[%emt 0:00:00]} Kg8 {[%emt 0:00:05]} 69. Nh6+ {[%emt 0:00:00]} Kh8 {[%emt 0:00:04]} 70. Bc3# {[%emt 0:00:00] normal} 1-0

[Event "-chT Youth Countries 2019"]
[Site "Wuerzburg"]
[Date "2019.10.06"]
[Round "7.2"]
[White "Karsay, Pascal"]
[Black "Nguyen, Alex Dac-Vuong"]
[Result "1/2-1/2"]
[ECO "E63"]
[WhiteElo "2276"]
[BlackElo "2128"]
[Annotator "ChessBase"]
[PlyCount "71"]
[EventDate "2019.10.02"]
[EventType "team-tourn"]
[EventRounds "7"]
[EventCountry "GER"]
[SourceTitle "playchess.com"]
[Source "ChessBase"]
[SourceQuality "1"]
[WhiteTeam "Rheinland-Pfalz"]
[BlackTeam "Sachsen"]
[TimeControl "40/5400+30:1800+30"]

1. Nf3 {[%emt 0:00:00]} Nf6 {[%emt 0:00:00]} 2. g3 {[%emt 0:00:00]} g6 {[%emt 0:00:00]} 3. c4 {[%emt 0:00:20]} Bg7 {[%emt 0:00:00]} 4. Bg2 {[%emt 0:00:03]} O-O {[%emt 0:00:00]} 5. O-O {[%emt 0:00:04]} d6 {[%emt 0:00:00]} 6. d4 {[%emt 0:00:04]} Nc6 {[%emt 0:00:12]} 7. Nc3 {[%emt 0:00:06]} a6 {[%emt 0:00:04]} 8. Bf4 {[%emt 0:00:08]} Rb8 {[%emt 0:00:07]} 9. Rc1 {[%emt 0:00:06]} h6 {[%emt 0:00:06]} 10. Qd3 {[%emt 0:00:08]} g5 {[%emt 0:06:17]} 11. Bd2 {[%emt 0:00:08]} e5 {[%emt 0:01:48]} 12. d5 {[%emt 0:02:40]} Ne7 {[%emt 0:10:36]} 13. e4 {[%emt 0:00:08]} Nd7 {[%emt 0:00:07]} 14. b4 {[%emt 0:06:57]} f5 {[%emt 0:01:05]} 15. exf5 {[%emt 0:00:13]} Nf6 {[%emt 0:00:19]} 16. Ne1 {[%emt 0:19:33]} Bxf5 {[%emt 0:05:07]} 17. Ne4 {[%emt 0:05:05]} Qd7 {[%emt 0:08:54]} 18. Nxf6+ {[%emt 0:05:54]} Rxf6 {[%emt 0:02:57]} 19. Be4 {[%emt 0:10:27]} Rbf8 {[%emt 0:00:53]} 20. Bxf5 {[%emt 0:02:11]} Nxf5 {[%emt 0:01:13]} 21. Nc2 {[%emt 0:06:39]} Qf7 {[%emt 0:04:51]} 22. Be3 {[%emt 0:04:55]} Qg6 {[%emt 0:14:42]} 23. Rce1 {[%emt 0:04:25]} Nh4 {[%emt 0:02:07]} 24. Qxg6 {[%emt 0:00:12]} Nf3+ {[%emt 0:00:08]} 25. Kh1 {[%emt 0:00:04]} Rxg6 {[%emt 0:00:05]} 26. Re2 {[%emt 0:05:13]} g4 {[%emt 0:01:16]} 27. Ne1 {[%emt 0:05:12]} h5 {[%emt 0:03:11]} 28. Nxf3 {[%emt 0:02:44]} Rxf3 {[%emt 0:01:06]} 29. Rb1 {[%emt 0:05:16]} Bh6 {[%emt 0:01:22]} 30. Rb3 {[%emt 0:02:56]} Bxe3 {[%emt 0:00:53]} 31. Rbxe3 {[%emt 0:00:04]} Rgf6 {[%emt 0:00:39]} 32. Kg1 {[%emt 0:02:34]} Kf7 {[%emt 0:00:12]} 33. a4 {[%emt 0:02:35]} b6 {[%emt 0:02:52]} 34. Kf1 {[%emt 0:00:43]} Ke7 {[%emt 0:02:57]} 35. Ke1 {[%emt 0:00:51]} Kd7 {[%emt 0:00:22]} 36. Rxf3 {[%emt 0:04:31] normal} 1/2-1/2

[Event "-chT Youth Countries 2019"]
[Site "Wuerzburg"]
[Date "2019.10.06"]
[Round "7.2"]
[White "Niermann, Tristan"]
[Black "Schneider, Jana"]
[Result "0-1"]
[ECO "A06"]
[WhiteElo "2227"]
[BlackElo "2240"]
[Annotator "ChessBase"]
[PlyCount "62"]
[EventDate "2019.10.02"]
[EventType "team-tourn"]
[EventRounds "7"]
[EventCountry "GER"]
[SourceTitle "playchess.com"]
[Source "ChessBase"]
[SourceQuality "1"]
[WhiteTeam "Nordrhein-Westfalen"]
[BlackTeam "Bayern 1"]
[TimeControl "40/5400+30:1800+30"]

1. Nf3 {[%emt 0:00:00]} d5 {[%emt 0:00:00]} 2. g3 {[%emt 0:00:00]} Nd7 {[%emt 0:00:11]} 3. d4 {[%emt 0:01:07]} Ngf6 {[%emt 0:00:08]} 4. Bg2 {[%emt 0:00:49]} b5 {[%emt 0:01:56]} 5. O-O {[%emt 0:00:34]} e6 {[%emt 0:00:28]} 6. a4 {[%emt 0:01:33]} b4 {[%emt 0:00:37]} 7. c4 {[%emt 0:00:09]} bxc3 {[%emt 0:00:35]} 8. Nxc3 {[%emt 0:00:12]} Be7 {[%emt 0:03:35]} 9. Ne5 {[%emt 0:19:42]} Nxe5 {[%emt 0:05:49]} 10. dxe5 {[%emt 0:00:09]} Nd7 {[%emt 0:00:05]} 11. e4 {[%emt 0:08:15]} c6 {[%emt 0:01:29]} 12. exd5 {[%emt 0:01:19]} cxd5 {[%emt 0:00:13]} 13. Qg4 {[%emt 0:00:55]} Kf8 {[%emt 0:14:20]} 14. Qh5 {[%emt 0:11:41]} Rb8 {[%emt 0:04:39]} 15. f4 {[%emt 0:22:37]} g6 {[%emt 0:04:29]} 16. Qe2 {[%emt 0:12:47]} Nc5 {[%emt 0:04:20]} 17. f5 {[%emt 0:01:48]} gxf5 {[%emt 0:00:57]} 18. Bh6+ {[%emt 0:01:06]} Ke8 {[%emt 0:01:17]} 19. Qh5 {[%emt 0:05:27]} Rg8 {[%emt 0:09:02]} 20. Rad1 {[%emt 0:00:01]} Rxb2 {[%emt 0:03:47]} 21. Bc1 {[%emt 0:03:35]} Rc2 {[%emt 0:06:49]} 22. Qxh7 {[%emt 0:00:14]} Rf8 {[%emt 0:00:06]} 23. Nxd5 {[%emt 0:03:24]} Rxg2+ {[%emt 0:01:24]} 24. Kxg2 {[%emt 0:00:12]} Bb7 {[%emt 0:00:09]} 25. Bh6 {[%emt 0:00:32]} Bxd5+ {[%emt 0:00:18]} 26. Kh3 {[%emt 0:01:35]} Qa8 {[%emt 0:03:13]} 27. Rf2 {[%emt 0:01:07]} Ne4 {[%emt 0:00:14]} 28. Rb2 {[%emt 0:00:08]} Kd7 {[%emt 0:10:21]} 29. Qg7 {[%emt 0:02:25]} Rh8 {[%emt 0:00:10]} 30. Rxd5+ {[%emt 0:00:58]} exd5 {[%emt 0:00:14]} 31. Qxf7 {[%emt 0:00:16]} Ng5+ {[%emt 0:00:10] normal} 0-1

[Event "-chT Youth Countries 2019"]
[Site "Wuerzburg"]
[Date "2019.10.06"]
[Round "7.2"]
[White "Köhler, Lukas"]
[Black "Riehle, Marco"]
[Result "1/2-1/2"]
[ECO "C47"]
[WhiteElo "2040"]
[BlackElo "2309"]
[Annotator "ChessBase"]
[PlyCount "116"]
[EventDate "2019.10.02"]
[EventType "team-tourn"]
[EventRounds "7"]
[EventCountry "GER"]
[SourceTitle "playchess.com"]
[Source "ChessBase"]
[SourceQuality "1"]
[WhiteTeam "Bayern 2"]
[BlackTeam "Baden 2"]
[TimeControl "40/5400+30:1800+30"]

1. e4 {[%emt 0:00:00]} e5 {[%emt 0:00:00]} 2. Nf3 {[%emt 0:00:00]} Nf6 {[%emt 0:00:00]} 3. Nc3 {[%emt 0:00:04]} Nc6 {[%emt 0:02:07]} 4. d4 {[%emt 0:00:15]} exd4 {[%emt 0:00:04]} 5. Nxd4 {[%emt 0:00:09]} Bb4 {[%emt 0:00:04]} 6. Nxc6 {[%emt 0:00:45]} bxc6 {[%emt 0:00:04]} 7. Bd3 {[%emt 0:00:16]} d5 {[%emt 0:00:10]} 8. exd5 {[%emt 0:00:10]} cxd5 {[%emt 0:00:04]} 9. O-O {[%emt 0:00:23]} O-O {[%emt 0:00:04]} 10. h3 {[%emt 0:00:29]} Re8 {[%emt 0:00:36]} 11. Bf4 {[%emt 0:01:58]} c6 {[%emt 0:00:43]} 12. Qf3 {[%emt 0:01:54]} Bd6 {[%emt 0:01:41]} 13. b3 {[%emt 0:07:08]} Qc7 {[%emt 0:03:50]} 14. Bxd6 {[%emt 0:02:06]} Qxd6 {[%emt 0:00:07]} 15. Na4 {[%emt 0:01:55]} Bd7 {[%emt 0:01:23]} 16. Qg3 {[%emt 0:37:39]} Qxg3 {[%emt 0:04:11]} 17. fxg3 {[%emt 0:00:15]} Re7 {[%emt 0:00:16]} 18. Rfe1 {[%emt 0:03:06]} Rae8 {[%emt 0:10:09]} 19. Kf2 {[%emt 0:02:52]} Kf8 {[%emt 0:03:08]} 20. Nc5 {[%emt 0:07:42]} Bc8 {[%emt 0:01:07]} 21. g4 {[%emt 0:04:18]} h6 {[%emt 0:00:04]} 22. c3 {[%emt 0:01:58]} Rxe1 {[%emt 0:01:06]} 23. Rxe1 {[%emt 0:00:15]} Rxe1 {[%emt 0:00:06]} 24. Kxe1 {[%emt 0:00:15]} Ke7 {[%emt 0:00:05]} 25. Kd2 {[%emt 0:03:43]} Kd6 {[%emt 0:00:11]} 26. b4 {[%emt 0:02:44]} Nd7 {[%emt 0:00:52]} 27. Nxd7 {[%emt 0:02:30]} Bxd7 {[%emt 0:00:04]} 28. Ke3 {[%emt 0:02:32]} c5 {[%emt 0:00:33]} 29. a3 {[%emt 0:02:14]} cxb4 {[%emt 0:00:42]} 30. axb4 {[%emt 0:01:57]} Ke5 {[%emt 0:00:05]} 31. Be2 {[%emt 0:03:40]} f6 {[%emt 0:01:13]} 32. Bd3 {[%emt 0:02:50]} Be8 {[%emt 0:00:47]} 33. Be2 {[%emt 0:01:18]} g5 {[%emt 0:00:05]} 34. Bd3 {[%emt 0:02:34]} h5 {[%emt 0:03:30]} 35. gxh5 {[%emt 0:02:53]} Bxh5 {[%emt 0:00:02]} 36. g4 {[%emt 0:02:29]} Be8 {[%emt 0:00:33]} 37. Be2 {[%emt 0:00:36]} Ba4 {[%emt 0:01:40]} 38. Bd3 {[%emt 0:00:33]} Bd7 {[%emt 0:00:05]} 39. Bc2 {[%emt 0:00:33]} Bb5 {[%emt 0:00:36]} 40. Bd3 {[%emt 0:00:30]} Ba4 {[%emt 0:00:24]} 41. Bb1 {[%emt 0:06:12]} Bb3 {[%emt 0:02:01]} 42. Bg6 {[%emt 0:01:53]} Bd1 {[%emt 0:00:19]} 43. Bh7 {[%emt 0:00:40]} Kd6 {[%emt 0:00:09]} 44. Bd3 {[%emt 0:02:33]} Kc6 {[%emt 0:00:11]} 45. Bf1 {[%emt 0:01:27]} Kb6 {[%emt 0:00:23]} 46. Bg2 {[%emt 0:02:51]} Bb3 {[%emt 0:00:05]} 47. Kd4 {[%emt 0:03:07]} Kc6 {[%emt 0:01:16]} 48. Bf1 {[%emt 0:03:26]} Kd6 {[%emt 0:01:01]} 49. Be2 {[%emt 0:01:23]} Bc2 {[%emt 0:01:02]} 50. Bf3 {[%emt 0:00:17]} f5 {[%emt 0:00:17]} 51. gxf5 {[%emt 0:08:45]} Bxf5 {[%emt 0:00:02]} 52. Bg4 {[%emt 0:00:06]} Bc2 {[%emt 0:00:30]} 53. Bc8 {[%emt 0:00:09]} Bb3 {[%emt 0:00:41]} 54. Bg4 {[%emt 0:00:07]} Bc4 {[%emt 0:00:23]} 55. Bf5 {[%emt 0:01:19]} Bf1 {[%emt 0:00:17]} 56. Bg4 {[%emt 0:00:02]} Bg2 {[%emt 0:00:23]} 57. Bf5 {[%emt 0:00:46]} Kc6 {[%emt 0:02:48]} 58. Bg4 {[%emt 0:00:18]} Kd6 {[%emt 0:00:05] normal} 1/2-1/2

[Event "-chT Youth Countries 2019"]
[Site "Wuerzburg"]
[Date "2019.10.06"]
[Round "7.2"]
[White "Schallner, Marc"]
[Black "Krastev, Alexander"]
[Result "0-1"]
[ECO "B36"]
[WhiteElo "2027"]
[BlackElo "2343"]
[Annotator "ChessBase"]
[PlyCount "54"]
[EventDate "2019.10.02"]
[EventType "team-tourn"]
[EventRounds "7"]
[EventCountry "GER"]
[SourceTitle "playchess.com"]
[Source "ChessBase"]
[SourceQuality "1"]
[WhiteTeam "Team Süd"]
[BlackTeam "Hessen"]
[TimeControl "40/5400+30:1800+30"]

1. e4 {[%emt 0:00:00]} c5 {[%emt 0:00:09]} 2. Nf3 {[%emt 0:00:00]} g6 {[%emt 0:00:02]} 3. d4 {[%emt 0:00:00]} cxd4 {[%emt 0:00:04]} 4. Nxd4 {[%emt 0:00:04]} Nc6 {[%emt 0:00:11]} 5. c4 {[%emt 0:00:19]} Nf6 {[%emt 0:00:13]} 6. Nc3 {[%emt 0:00:35]} d6 {[%emt 0:00:22]} 7. Be2 {[%emt 0:00:50]} Nxd4 {[%emt 0:00:06]} 8. Qxd4 {[%emt 0:00:07]} Bg7 {[%emt 0:00:03]} 9. Be3 {[%emt 0:00:50]} O-O {[%emt 0:00:06]} 10. Qd2 {[%emt 0:02:59]} Bd7 {[%emt 0:00:05]} 11. f3 {[%emt 0:00:32]} Bc6 {[%emt 0:00:36]} 12. O-O {[%emt 0:00:54]} a5 {[%emt 0:00:06]} 13. Rab1 {[%emt 0:02:50]} Nd7 {[%emt 0:01:03]} 14. Rfc1 {[%emt 0:03:46]} Nc5 {[%emt 0:00:20]} 15. b3 {[%emt 0:03:54]} e6 {[%emt 0:00:05]} 16. Nb5 {[%emt 0:08:43]} Be5 {[%emt 0:29:44]} 17. Bg5 {[%emt 0:10:37]} Qb6 {[%emt 0:17:47]} 18. Kh1 {[%emt 0:00:32]} f5 {[%emt 0:01:41]} 19. exf5 {[%emt 0:09:26]} Rxf5 {[%emt 0:01:20]} 20. Be3 {[%emt 0:02:05]} Qd8 {[%emt 0:00:47]} 21. Bxc5 {[%emt 0:01:09]} Qh4 {[%emt 0:22:45]} 22. Bg1 {[%emt 0:02:12]} Rh5 {[%emt 0:00:04]} 23. f4 Bxf4 {[%emt 0:02:41]} 24. Qe1 {[%emt 0:13:34]} Bg3 {[%emt 0:06:19]} 25. Bxh5 {[%emt 0:00:21]} Bxe1 {[%emt 0:00:08]} 26. Rxe1 {[%emt 0:00:39]} Qxh5 {[%emt 0:00:05]} 27. Nxd6 {[%emt 0:01:57]} Bxg2+ {[%emt 0:04:32] normal} 0-1